bitfinex/quotes_ETHUSD_20250110
["timestamp","ask_amount","ask_price","bid_price","bid_amount"]
[1736486417274,2.29206531,3253.1,3252.2,3.07475]
[1736486417428,2.74151852,3253.1,3252.2,3.07475]
[1736486417630,0.27415185,3253.0,3251.9,0.22]
[1736486417832,0.27415185,3253.0,3252.3,3.07473]
[1736486420253,2.74151852,3253.1,3252.4,3.07461]
[1736486420949,3.42301915,3253.6,3252.1,0.03824561]
[1736486420950,5.29206531,3253.6,3252.1,0.03824561]
[1736486421133,5.29206531,3253.6,3252.8,3.07426]
[1736486421531,5.29206531,3253.6,3252.7,3.07431]
[1736486421864,5.29206531,3253.6,3252.8,3.07426]
[1736486422023,1.05720653,3253.5,3252.8,3.07426]
[1736486422219,5.29206531,3253.6,3252.5,0.03074172]
[1736486422424,5.28,3253.7,3253.2,3.07389]
[1736486422852,3.0,3253.6,3253.2,3.07389]
[1736486423045,5.28,3254.6,3253.1,0.7565]
[1736486423248,2.29206531,3254.3,3253.8,3.07332]
[1736486424376,2.29206531,3254.6,3253.9,3.07321]
[1736486424762,5.29206531,3254.6,3253.9,3.07321]
[1736486424948,0.63597043,3254.5,3253.9,3.07321]
[1736486425145,0.63597043,3254.5,3254.0,3.07312]
[1736486425549,2.29206531,3254.6,3254.0,3.07312]
[1736486426075,2.29206531,3254.6,3253.1,0.764]
[1736486426282,2.29206531,3254.9,3254.1,3.07295]
[1736486426575,2.29206531,3254.9,3254.2,3.07291]
[1736486426792,0.22920653,3254.8,3254.2,3.07291]
[1736486426953,0.22920653,3254.8,3253.7,0.22]
[1736486427272,0.22920653,3254.8,3254.3,3.07283]
[1736486429283,0.22920653,3254.8,3254.1,3.07303]
[1736486430371,0.22920653,3254.8,3254.2,3.07294]
[1736486431673,3.0,3255.0,3254.0,3.07314]
[1736486431874,2.29206531,3255.5,3254.2,0.8216]
[1736486432095,0.72111987,3255.4,3254.2,0.8216]
[1736486432373,0.42111987,3255.3,3254.4,3.07272]
[1736486432540,0.42111987,3255.3,3254.6,3.07255]
[1736486432738,0.7647403,3255.3,3254.6,3.07255]
[1736486435366,0.7647403,3255.3,3254.4,3.07274]
[1736486435788,0.7647403,3255.3,3254.5,3.07265]
[1736486438354,0.7647403,3255.3,3254.6,3.07256]
[1736486439786,0.7647403,3255.3,3253.8,0.7808]
[1736486440002,3.0,3255.1,3254.1,3.073]
[1736486440301,0.84413902,3255.0,3254.2,3.07294]
[1736486440755,0.84413902,3255.0,3253.9,0.22]
[1736486440955,0.6916239,3254.9,3254.0,3.0731]
[1736486441576,0.6916239,3254.9,3253.9,0.22]
[1736486441780,0.6916239,3254.9,3254.1,3.07303]
[1736486443203,0.6916239,3254.9,3253.9,0.22]
[1736486443488,0.6916239,3254.9,3254.3,3.07285]
[1736486443695,3.0,3255.1,3254.3,3.07285]
[1736486443993,0.44877594,3255.2,3254.4,3.07272]
[1736486444193,0.34362043,3255.3,3254.4,0.03072697]
[1736486444492,0.84413902,3255.5,3254.8,3.0723]
[1736486444879,0.84413902,3255.5,3254.3,0.0075]
[1736486444880,3.84413902,3255.5,3254.3,0.0075]
[1736486445083,3.84413902,3255.5,3254.6,3.07254]
[1736486446267,3.84413902,3255.5,3254.4,3.07276]
[1736486446502,3.84413902,3255.5,3254.7,3.07239]
[1736486446662,4.75655292,3255.5,3254.7,3.07239]
[1736486449020,1.75655292,3255.5,3254.7,3.07239]
[1736486449320,0.84413902,3255.5,3254.7,3.07239]
[1736486451303,0.84413902,3255.5,3254.5,3.07266]
[1736486451644,0.84413902,3255.5,3254.6,3.07255]
[1736486455445,0.84413902,3255.5,3254.0,3.07312]
[1736486455446,5.36415531,3255.2,3254.0,3.07312]
[1736486455642,3.07228,3255.0,3254.0,0.22]
[1736486455841,2.29206531,3254.9,3254.0,0.22]
[1736486456041,3.0,3254.8,3254.0,0.22]
[1736486456660,0.42301915,3254.7,3253.8,3.07331]
[1736486456809,0.6916559,3254.6,3253.7,0.22]
[1736486457540,0.6916559,3254.6,3253.8,3.07331]
[1736486457738,0.84413902,3254.7,3253.8,3.07331]
[1736486461653,0.42111987,3254.7,3253.8,3.07331]
[1736486461954,3.0,3254.8,3253.7,0.22]
[1736486462156,3.0,3254.8,3253.9,3.07322]
[1736486463764,2.29206531,3254.9,3254.0,3.07312]
[1736486463962,3.0,3254.8,3254.0,3.07312]
[1736486464416,3.0,3254.8,3253.7,0.22]
[1736486464616,3.0,3254.8,3253.8,3.0733]
[1736486465464,3.0,3254.8,3253.9,3.07318]
[1736486467725,3.0,3254.8,3253.7,0.22]
[1736486468076,3.0,3254.8,3254.0,3.07314]
[1736486468977,2.29206531,3254.1,3253.1,3.0739]
[1736486469124,3.84413902,3254.0,3252.9,0.8241]
[1736486469476,3.84413902,3254.0,3253.0,0.411829]
[1736486469624,3.84413902,3254.0,3253.1,3.0739]
[1736486471775,3.22912346,3254.6,3253.3,3.07372]
[1736486471776,3.55,3254.3,3253.3,3.07372]
[1736486471978,3.0,3254.6,3253.4,0.03073613]
[1736486472286,5.28,3254.7,3253.5,0.8289]
[1736486472576,5.28,3254.7,3254.0,3.07306]
[1736486472744,3.0,3254.6,3254.0,3.07306]
[1736486473724,3.0,3254.6,3254.0,1.16127901]
[1736486473960,2.29206531,3255.0,3254.0,0.85962864]
[1736486474177,2.29206531,3255.0,3254.3,3.07277]
[1736486475046,2.71318518,3255.3,3254.0,0.8289]
[1736486475277,0.42111987,3255.3,3254.2,0.0075]
[1736486475610,3.0,3255.5,3254.7,3.07245]
[1736486475807,0.57131852,3255.4,3254.7,3.07245]
[1736486480395,3.0,3255.5,3254.7,3.07245]
[1736486480720,3.0,3255.5,3254.4,3.07269]
[1736486481012,5.29206531,3255.3,3254.4,3.29269]
[1736486481215,6.32572228,3255.3,3254.4,3.29269]
[1736486481934,2.29206531,3255.0,3254.1,0.8289]
[1736486482093,2.29206531,3254.7,3253.8,4.12219]
[1736486483080,2.29206531,3254.7,3253.9,3.07323]
[1736486483280,2.29206531,3254.7,3253.9,3.485443]
[1736486484113,2.29206531,3254.7,3253.8,0.22]
[1736486484313,3.0,3254.6,3253.8,0.22]
[1736486485677,3.0,3254.6,3253.8,3.2933]
[1736486486824,3.0,3254.6,3253.8,0.22]
[1736486487025,3.0,3254.6,3253.9,3.07322]
[1736486493741,2.71318518,3254.7,3253.9,3.07322]
[1736486499930,3.0,3254.6,3253.8,0.22]
[1736486501417,3.0,3254.6,3253.8,3.29332]
[1736486502762,3.87855652,3254.6,3253.5,0.8071]
[1736486502949,2.29206531,3253.9,3253.1,3.07399]
[1736486503260,3.0,3253.8,3253.0,0.7612]
[1736486503846,2.29206531,3253.6,3252.9,0.22]
[1736486504157,3.17072883,3253.6,3252.9,0.22]
[1736486504518,6.24425883,3253.6,3252.9,0.22]
[1736486504752,6.24425883,3253.6,3252.5,3.07452]
[1736486504920,6.24425883,3253.6,3252.5,3.29452]
[1736486506055,3.17072883,3253.6,3252.5,0.22]
[1736486506217,3.17072883,3253.6,3252.6,3.07443]
[1736486506417,2.29206531,3253.9,3252.9,3.07417]
[1736486507364,5.29206531,3253.9,3252.9,3.07417]
[1736486507917,5.29206531,3253.9,3252.9,3.86537]
[1736486508348,2.29206531,3253.9,3253.1,3.07398]
[1736486509456,2.29206531,3253.9,3252.9,0.7912]
[1736486509457,2.29206531,3253.9,3253.2,3.07388]
[1736486509625,2.29206531,3253.9,3253.2,3.38434175]
[1736486509819,2.29206531,3253.6,3252.6,0.408563]
[1736486510021,2.29206531,3253.6,3252.6,0.7809]
[1736486510249,2.71318518,3253.6,3252.6,0.7809]
[1736486511121,2.71318518,3253.6,3252.6,3.85534]
[1736486512337,2.71318518,3253.6,3252.6,0.7809]
[1736486512546,2.29206531,3253.6,3252.7,3.07434]
[1736486512836,2.29206531,3253.6,3252.7,3.481864]
[1736486515565,2.29206531,3253.6,3252.8,3.07427]
[1736486515955,3.0,3253.8,3252.8,3.07427]
[1736486516267,3.0,3253.8,3252.7,0.407524]
[1736486516476,3.0,3253.8,3253.1,3.07395]
[1736486517369,3.0,3253.8,3252.7,3.07432]
[1736486517370,3.0,3253.8,3253.2,3.07386]
[1736486518870,3.0,3253.8,3253.4,3.07365]
[1736486520491,3.0,3253.8,3253.1,0.7708]
[1736486520690,2.29206531,3253.6,3252.5,3.07446]
[1736486520896,2.29206531,3253.6,3253.0,3.07406]
[1736486525290,2.29206531,3254.2,3253.4,3.0737]
[1736486526195,2.29206531,3254.2,3253.3,0.03073618]
[1736486526357,3.32153704,3254.2,3253.3,3.0738]
[1736486526691,2.29206531,3253.9,3253.3,3.0738]
[1736486527501,2.29206531,3253.9,3253.4,3.0737]
[1736486528495,0.57468519,3254.2,3253.0,0.7708]
[1736486528707,2.29206531,3254.5,3253.7,3.07341]
[1736486528909,2.29206531,3254.5,3253.8,3.07332]
[1736486529697,2.29206531,3254.5,3253.9,3.07322]
[1736486530395,5.28,3255.0,3254.2,3.0729]
[1736486530597,6.03720653,3255.0,3254.2,3.0729]
[1736486530805,2.29206531,3255.1,3254.1,3.07304]
[1736486531011,2.29206531,3255.1,3254.3,3.07279]
[1736486531174,2.29206531,3255.1,3254.1,0.03072674]
[1736486531175,0.6125371,3255.3,3254.6,3.07251]
[1736486531379,2.29206531,3254.8,3253.9,0.7902]
[1736486532060,2.29206531,3254.8,3254.1,3.07301]
[1736486532292,2.29206531,3254.8,3254.3,3.07284]
[1736486534162,2.29206531,3255.1,3254.3,3.07284]
[1736486535599,2.29206531,3255.1,3253.9,0.7902]
[1736486535802,0.44735591,3255.3,3254.2,3.07295]
[1736486536011,0.44735591,3255.3,3254.1,0.7817]
[1736486536308,2.29206531,3255.1,3254.3,3.07281]
[1736486536516,3.0,3255.0,3254.3,3.07281]
[1736486536699,3.0,3255.0,3254.3,0.385451]
[1736486536902,3.0,3255.0,3254.4,3.07275]
[1736486538091,3.0,3255.0,3254.5,3.07265]
[1736486538292,2.29206531,3254.8,3254.1,0.7817]
[1736486538584,2.29206531,3254.8,3254.0,0.22]
[1736486539092,2.29206531,3254.8,3254.0,0.632134]
[1736486539710,2.29206531,3254.8,3254.1,3.07301]
[1736486540605,2.29206531,3254.8,3254.2,3.07295]
[1736486541218,2.76398089,3254.8,3254.0,0.632134]
[1736486541523,2.76398089,3254.8,3254.0,3.29313]
[1736486542117,2.76398089,3254.8,3254.1,3.07303]
[1736486543022,0.47191558,3254.7,3254.1,3.07303]
[1736486543414,0.47191558,3254.7,3253.6,0.7796]
[1736486543595,0.47191558,3254.7,3253.1,0.771]
[1736486543596,2.29206531,3254.2,3253.1,0.771]
[1736486543795,3.91927149,3254.1,3253.3,3.07378]
[1736486544125,3.91927149,3254.1,3253.1,3.84498]
[1736486544508,2.29206531,3253.9,3253.2,3.07388]
[1736486544706,2.29206531,3253.9,3253.3,3.07376]
[1736486547325,2.76398089,3253.9,3253.3,3.07376]
[1736486550716,2.76398089,3253.9,3253.4,3.07368]
[1736486552344,2.29206531,3254.2,3253.4,3.07368]
[1736486553715,2.76398089,3254.2,3253.4,3.07368]
[1736486554242,0.47191558,3254.1,3253.2,3.480358]
[1736486554441,2.29206531,3253.9,3252.8,0.7625]
[1736486554618,2.76398089,3253.9,3253.0,3.07404]
[1736486555330,2.76398089,3253.9,3253.1,3.07398]
[1736486555646,2.76398089,3253.9,3253.1,3.403378]
[1736486557457,2.76398089,3253.9,3253.2,3.07388]
[1736486562345,2.76398089,3253.9,3253.1,0.329398]
[1736486562542,2.29206531,3253.9,3253.4,3.07367]
[1736486564716,2.29206531,3253.9,3252.9,3.29412]
[1736486565271,2.29206531,3253.9,3253.3,3.07371]
[1736486565619,2.29206531,3253.9,3253.4,3.07368]
[1736486565844,2.29206531,3253.9,3253.0,3.07408]
[1736486566166,2.29206531,3253.3,3252.1,0.7667]
[1736486566328,2.29206531,3253.0,3252.3,3.07467]
[1736486566665,2.29206531,3252.7,3252.1,3.07491]
[1736486566972,3.0,3252.6,3251.9,3.07511]
[1736486567318,2.29206531,3252.4,3251.9,3.07511]
[1736486567631,3.0,3252.6,3251.9,0.307511]
[1736486567852,2.29206531,3252.7,3252.0,3.07501]
[1736486568515,2.29206531,3252.7,3251.9,3.07511]
[1736486569568,2.29206531,3252.7,3251.6,0.22]
[1736486569569,2.29206531,3252.7,3252.0,3.075]
[1736486570580,2.29206531,3252.7,3252.1,0.80364693]
[1736486571234,2.29206531,3252.7,3252.1,0.7729]
[1736486571652,2.29206531,3252.7,3252.2,3.07475]
[1736486571853,2.29206531,3252.7,3252.3,3.07473]
[1736486573429,3.0,3253.2,3252.4,3.07462]
[1736486573634,2.29206531,3253.3,3252.6,3.07445]
[1736486574350,3.0,3253.7,3252.6,3.07445]
[1736486574550,2.29206531,3253.3,3252.6,3.07445]
[1736486574786,2.29206531,3253.3,3252.7,0.307445]
[1736486575130,2.29206531,3252.8,3252.6,3.07445]
[1736486575339,0.55,3252.6,3251.4,3.07558]
[1736486575556,2.29206531,3252.1,3251.2,3.82591]
[1736486575772,2.29206531,3252.2,3251.2,3.82596]
[1736486575979,4.073304,3252.5,3251.4,0.03075205]
[1736486576268,5.29206531,3252.5,3251.4,3.10631205]
[1736486576469,2.29206531,3252.2,3251.2,0.7502]
[1736486576941,2.29206531,3252.2,3251.2,3.82597]
[1736486581313,2.29206531,3252.2,3251.2,0.7502]
[1736486581314,2.29206531,3251.9,3251.2,0.7502]
[1736486581514,2.29206531,3251.9,3250.9,1.0303]
[1736486581905,2.29206531,3251.9,3250.9,4.10636]
[1736486582480,2.29206531,3251.9,3251.0,3.07596]
[1736486582986,3.0,3252.0,3251.2,3.07578]
[1736486583199,3.0,3252.0,3251.4,0.7953]
[1736486583417,5.29206531,3252.2,3251.4,0.7953]
[1736486583604,5.29206531,3252.2,3251.4,1.19914843]
[1736486584126,0.86477149,3252.5,3251.4,4.30549324]
[1736486584127,2.29206531,3252.5,3251.4,4.30549324]
[1736486584330,2.29206531,3252.5,3251.4,4.27473843]
[1736486584509,2.29206531,3252.2,3251.4,1.19914843]
[1736486584703,2.29206531,3252.2,3251.4,0.7953]
[1736486586659,5.29206531,3252.2,3251.4,0.7953]
[1736486587001,8.36690531,3252.2,3251.4,0.7953]
[1736486589134,2.29206531,3251.9,3251.2,0.7545]
[1736486589642,2.29206531,3251.9,3251.0,0.235]
[1736486589643,2.29206531,3251.6,3251.0,0.235]
[1736486590239,2.29206531,3251.6,3250.8,0.7734]
[1736486596118,2.29206531,3251.6,3250.8,3.84955]
[1736486597463,2.29206531,3251.6,3250.8,0.7734]
[1736486597762,3.0,3251.8,3251.0,3.07594]
[1736486598842,3.0,3251.8,3251.3,0.9653043]
[1736486600960,3.0755,3251.5,3251.3,0.1674043]
[1736486601117,3.86477149,3251.4,3251.3,0.1674043]
[1736486602163,0.86477149,3251.4,3251.3,0.1674043]
[1736486603633,2.29206531,3251.9,3251.3,0.1674043]
[1736486604458,5.29206531,3251.9,3251.3,0.1674043]
[1736486605250,7.07419442,3251.9,3251.3,0.1674043]
[1736486605435,2.29206531,3251.6,3251.3,0.1674043]
[1736486617788,3.0,3251.8,3251.3,0.1674043]
[1736486617940,8.35505,3252.0,3251.3,0.1674043]
[1736486617941,5.28,3252.0,3251.4,0.8282]
[1736486618132,2.29206531,3252.2,3251.5,3.07549]
[1736486618337,5.29206531,3252.2,3251.6,0.8282]
[1736486621736,6.15600347,3252.2,3251.6,0.8282]
[1736486622765,3.86393816,3252.1,3251.6,0.8282]
[1736486623439,2.29206531,3251.9,3251.6,0.8282]
[1736486624701,2.29206531,3252.2,3251.6,0.8282]
[1736486624992,8.35401,3253.1,3252.1,0.8173]
[1736486625199,3.12746631,3253.0,3252.1,0.8173]
[1736486625355,2.29206531,3252.4,3251.5,0.234]
[1736486625677,5.29206531,3252.4,3251.5,0.234]
[1736486627676,2.29206531,3252.4,3251.6,0.7962]
[1736486627975,2.29206531,3252.4,3251.6,1.206769]
[1736486628893,2.29206531,3252.4,3251.7,0.8197]
[1736486631064,3.07437,3252.7,3251.7,0.8197]
[1736486631065,2.29206531,3252.7,3251.8,0.8061]
[1736486632670,2.29206531,3252.7,3251.8,3.88131]
[1736486633328,2.29206531,3252.7,3251.8,4.269441]
[1736486633875,2.29206531,3252.7,3251.9,0.8146]
[1736486635824,2.29206531,3252.4,3251.9,0.8146]
[1736486639513,2.29206531,3252.4,3251.6,3.0754]
[1736486639712,2.29206531,3251.8,3251.3,0.1674043]
[1736486640028,2.29206531,3251.5,3251.3,0.1674043]
[1736486642815,2.29206531,3251.8,3251.3,0.1674043]
[1736486643018,2.29206531,3251.8,3251.4,0.8306]
[1736486643218,2.29206531,3252.1,3251.4,0.8306]
[1736486643420,2.29206531,3252.1,3251.5,0.8306]
[1736486643626,2.29206531,3252.1,3251.6,0.390616]
[1736486643939,2.29206531,3252.1,3251.5,0.8306]
[1736486645118,2.29206531,3251.8,3251.5,0.8306]
[1736486645658,2.29206531,3251.8,3251.3,0.9704043]
[1736486647913,3.0,3252.0,3251.3,0.9704043]
[1736486647914,2.29206531,3252.1,3251.4,0.7904]
[1736486648116,2.29206531,3252.1,3251.5,0.40334943]
[1736486648324,2.29206531,3252.1,3251.5,0.7904]
[1736486648483,2.29206531,3252.1,3251.5,3.89664261]
[1736486648687,2.29206531,3252.1,3251.6,0.7904]
[1736486648889,5.67074891,3252.4,3251.6,0.7904]
[1736486648890,7.57206531,3252.4,3251.8,3.07519]
[1736486649088,7.57206531,3252.4,3252.0,0.7851]
[1736486649831,5.28,3252.4,3252.0,0.7851]
[1736486650310,2.29206531,3252.7,3252.0,0.7851]
[1736486651465,2.29206531,3253.0,3252.3,0.7851]
[1736486651758,2.68281422,3253.3,3252.6,0.7714]
[1736486651939,2.29206531,3253.0,3252.6,0.7714]
[1736486654585,2.29206531,3252.7,3252.0,0.7876]
[1736486657404,2.29206531,3252.7,3252.0,3.86259]
[1736486657603,3.39074891,3253.0,3251.7,0.232]
[1736486657604,2.68281422,3253.0,3252.2,0.7877]
[1736486657771,2.29206531,3253.0,3252.2,3.86245]
[1736486657970,2.29206531,3253.0,3252.3,0.386245]
[1736486660579,2.29206531,3253.0,3252.2,0.7877]
[1736486661492,2.29206531,3252.7,3252.2,0.7877]
[1736486662294,2.29206531,3252.4,3252.2,0.7877]
[1736486662667,2.29206531,3252.7,3252.2,0.7877]
[1736486663051,2.29206531,3253.0,3252.2,3.86251]
[1736486663277,2.29206531,3253.0,3252.3,0.386251]
[1736486663554,2.29206531,3252.7,3252.2,0.7877]
[1736486664364,3.0,3252.9,3252.2,3.8625]
[1736486664689,3.0,3252.9,3252.3,0.7607]
[1736486664870,2.29206531,3253.0,3252.3,3.86610562]
[1736486665073,2.29206531,3253.0,3252.3,4.25271618]
[1736486665776,5.29206531,3253.3,3252.6,3.07443]
[1736486666086,2.29206531,3253.3,3252.7,0.8006]
[1736486675518,5.29206531,3253.3,3252.7,0.8006]
[1736486675831,2.29206531,3253.3,3252.7,0.8006]
[1736486683015,2.29206531,3253.3,3252.8,0.7715]
[1736486695759,2.68281422,3253.3,3252.8,0.7715]
[1736486697563,2.29206531,3253.3,3252.8,0.7715]
[1736486697856,2.29206531,3253.0,3252.4,0.8109]
[1736486699360,2.29206531,3253.0,3252.2,0.228]
[1736486699361,3.0,3252.6,3251.7,0.8137]
[1736486699561,5.36651531,3252.7,3251.7,0.8137]
[1736486699562,2.29206531,3252.3,3251.7,0.8137]
[1736486699865,2.29206531,3252.0,3251.7,0.8137]
[1736486700445,2.29206531,3252.0,3251.3,0.1674043]
[1736486700446,3.0,3251.8,3251.3,0.1674043]
[1736486700766,2.29206531,3251.5,3251.3,0.1674043]
[1736486705775,6.07559,3251.4,3251.3,0.1674043]
[1736486706065,9.57376815,3251.4,3251.3,0.1674043]
[1736486706473,7.43452815,3251.4,3251.3,0.1674043]
[1736486706654,3.55,3251.4,3251.3,0.1674043]
[1736486707038,3.0,3251.4,3251.3,0.1674043]
[1736486711171,5.67074891,3251.7,3251.3,0.9223043]
[1736486711348,3.0,3251.6,3251.3,0.9223043]
[1736486712400,0.39074891,3252.1,3251.3,0.9223043]
[1736486712557,3.02938711,3252.1,3251.3,0.9223043]
[1736486712759,3.0,3252.0,3251.3,0.9223043]
[1736486713024,2.29206531,3251.8,3251.3,0.9223043]
[1736486714077,2.68281422,3251.8,3251.3,0.9223043]
[1736486714279,0.65903033,3251.7,3251.3,0.1674043]
[1736486715510,0.39074891,3251.7,3251.3,0.1674043]
[1736486715979,3.39074891,3251.7,3251.3,0.1674043]
[1736486720209,2.29206531,3251.5,3251.3,0.1674043]
[1736486720998,3.0,3251.4,3251.3,0.1674043]
[1736486721698,9.88233815,3251.4,3251.3,0.1674043]
[1736486721929,11.0997785,3251.4,3251.3,0.1674043]
[1736486722446,13.40684381,3251.4,3251.3,0.1674043]
[1736486722597,11.1147785,3251.4,3251.3,0.1674043]
[1736486723309,13.40684381,3251.4,3251.3,0.1674043]
[1736486723930,11.1147785,3251.4,3251.3,0.1674043]
[1736486724250,11.2698345,3251.4,3251.3,0.1674043]
[1736486724452,11.1147785,3251.4,3251.3,0.1674043]
[1736486724598,11.0997785,3251.4,3251.3,0.1674043]
[1736486725471,3.0,3250.6,3250.2,1.25]
[1736486725625,2.29206531,3250.5,3250.2,1.25]
[1736486726613,3.0,3250.7,3250.2,1.25]
[1736486727048,2.29206531,3250.8,3250.3,0.7804]
[1736486727633,5.29206531,3250.8,3250.3,0.7804]
[1736486728254,5.29206531,3250.8,3250.2,1.25]
[1736486728255,2.29206531,3250.5,3250.2,1.25]
[1736486728562,3.91995544,3250.4,3250.2,1.25]
[1736486728725,4.33814468,3250.4,3250.2,1.25]
[1736486728924,6.62663,3250.3,3250.2,1.25]
[1736486729665,11.63413,3250.3,3250.2,1.25]
[1736486729960,12.44306815,3250.3,3250.2,1.25]
[1736486730127,13.96653879,3250.3,3250.2,1.25]
[1736486732449,3.07719,3249.8,3249.1,0.8287]
[1736486732655,2.29206531,3249.6,3249.1,0.8287]
[1736486733080,2.29206531,3249.9,3249.1,0.8287]
[1736486733828,2.29206531,3249.9,3249.2,0.390656]
[1736486734029,2.29206531,3249.9,3249.3,0.7782]
[1736486734279,5.29206531,3249.9,3249.3,0.7782]
[1736486734948,2.29206531,3249.6,3249.3,0.7782]
[1736486736567,5.29206531,3249.6,3249.3,0.7782]
[1736486738490,6.12899384,3249.6,3249.3,0.7782]
[1736486739658,6.12899384,3249.6,3248.8,0.7631]
[1736486740543,2.29206531,3249.3,3248.8,0.7631]
[1736486742486,2.29206531,3249.6,3248.8,0.7631]
[1736486742786,2.29206531,3249.6,3249.1,0.7689]
[1736486743541,2.29206531,3249.6,3249.1,0.384676]
[1736486743769,2.29206531,3249.6,3248.7,0.0075]
[1736486743770,2.29206531,3249.6,3249.3,0.7689]
[1736486744794,5.28,3249.9,3249.5,3.07735]
[1736486745484,2.29206531,3250.2,3249.5,3.07735]
[1736486746359,2.29206531,3250.2,3249.4,0.8314]
[1736486746756,2.29206531,3249.9,3249.0,3.07778]
[1736486746959,2.29206531,3249.9,3249.1,0.8111]
[1736486749902,2.29206531,3249.9,3249.1,3.88886]
[1736486750293,3.0,3250.0,3249.2,3.90376]
[1736486750602,3.0,3250.1,3249.3,3.07756]
[1736486750905,3.0,3250.1,3249.4,3.90359]
[1736486752306,3.0,3250.1,3249.4,0.8261]
[1736486752808,3.0,3250.1,3249.4,3.90354]
[1736486754708,3.0,3250.1,3249.7,0.762]
[1736486754894,0.41158225,3250.4,3249.7,0.762]
[1736486755204,2.29206531,3250.5,3249.7,3.83918]
[1736486757271,2.29206531,3250.5,3249.7,4.223098]
[1736486757810,2.29206531,3250.5,3249.8,0.8159]
[1736486758013,2.29206531,3250.5,3250.0,0.8277]
[1736486758200,0.41158225,3250.9,3250.1,3.90446]
[1736486758416,0.41158225,3250.9,3250.2,0.8277]
[1736486758577,0.41158225,3250.9,3250.2,3.90442]
[1736486758901,0.41158225,3250.9,3250.3,3.07661]
[1736486759102,1.02376593,3250.9,3250.3,3.07661]
[1736486759412,1.02376593,3250.9,3250.2,0.8277]
[1736486759618,2.29206531,3250.8,3250.2,0.8277]
[1736486760721,0.41158225,3250.9,3250.2,0.8277]
[1736486760936,0.014985,3420.0,3250.6,0.7507]
[1736486760937,2.29206531,3251.5,3250.6,0.7507]
[1736486761156,2.29206531,3251.2,3250.6,0.7507]
[1736486761441,0.96158225,3251.1,3250.6,0.7507]
[1736486762234,3.96158225,3251.1,3250.6,0.7507]
[1736486762810,3.41158225,3251.1,3250.6,0.7507]
[1736486763783,3.41158225,3251.1,3250.6,0.71962174]
[1736486764420,2.29206531,3250.9,3250.6,0.71962174]
[1736486764724,3.41158225,3251.1,3250.6,0.71962174]
[1736486767420,0.0311,3251.4,3250.6,0.71962174]
[1736486767421,2.29206531,3251.4,3250.6,0.71962174]
[1736486767624,3.0,3251.3,3250.7,3.07624]
[1736486767792,3.0,3251.3,3250.8,0.7855]
[1736486768796,0.41158225,3251.4,3250.8,0.7855]
[1736486769595,0.0311,3252.0,3250.9,0.772]
[1736486769794,0.0311,3252.3,3251.4,0.772]
[1736486770026,0.41158225,3252.2,3251.4,3.84758]
[1736486770220,0.41158225,3252.2,3251.5,3.07548]
[1736486770535,3.41158225,3252.2,3251.6,0.772]
[1736486770825,0.57036476,3252.1,3251.6,0.772]
[1736486771015,0.98194701,3252.1,3251.6,0.772]
[1736486775729,0.98194701,3252.1,3251.4,3.07558]
[1736486776548,0.55,3252.0,3251.3,0.7741]
[1736486776698,0.98194701,3252.1,3251.3,0.7741]
[1736486776899,0.98194701,3252.1,3251.3,3.88048416]
[1736486777228,0.41158225,3252.1,3251.3,4.29093258]
[1736486777399,0.41158225,3252.1,3251.3,1.21530258]
[1736486777599,0.41158225,3252.1,3251.5,3.0755]
[1736486777803,0.41158225,3252.1,3251.6,3.07538]
[1736486777997,0.41158225,3252.1,3251.4,0.03075227]
[1736486777998,0.41158225,3252.1,3251.7,0.7711]
[1736486779917,0.41158225,3252.1,3251.3,0.7633]
[1736486781132,0.41158225,3252.1,3251.4,3.07557]
[1736486782243,0.38713592,3252.1,3251.4,3.07557]
[1736486782541,0.38713592,3252.1,3251.4,3.459457]
[1736486782838,3.0,3252.2,3251.4,3.459457]
[1736486785307,3.0,3252.2,3251.6,0.8237]
[1736486785504,0.0311,3252.4,3251.6,3.8991]
[1736486786055,3.0311,3252.4,3251.6,3.8991]
[1736486786226,3.0311,3252.4,3251.7,0.38991]
[1736486786635,3.0311,3252.4,3251.7,3.4652]
[1736486787678,0.0311,3252.4,3251.9,3.07511]
[1736486787883,0.0311,3252.7,3252.0,3.07499]
[1736486788047,0.0311,3252.7,3252.0,3.46639404]
[1736486788778,0.0311,3253.0,3252.1,3.07493]
[1736486788964,0.55,3252.9,3252.1,3.07493]
[1736486789274,2.29206531,3252.4,3251.7,0.798]
[1736486789481,3.0,3252.3,3251.7,0.798]
[1736486789683,3.0,3252.3,3251.0,3.07588]
[1736486789684,3.55,3252.0,3251.3,0.798]
[1736486789881,4.03458505,3252.0,3250.9,3.87406]
[1736486791479,0.95954505,3252.0,3251.0,3.10670654]
[1736486791666,0.95954505,3252.0,3251.1,3.46633065]
[1736486791981,0.0311,3252.1,3251.2,0.78605597]
[1736486792182,0.0311,3252.1,3251.4,3.07558]
[1736486793048,0.0311,3252.1,3251.2,3.83107]
[1736486793592,0.0311,3252.1,3251.5,3.07542]
[1736486793891,0.0311,3252.5,3251.7,0.8231]
[1736486794096,0.0311,3252.5,3251.7,3.89833]
[1736486794448,0.0311,3252.5,3251.8,3.07521]
[1736486795693,0.0311,3252.5,3251.9,3.07512]
[1736486795988,0.0311,3252.5,3251.9,3.487042]
[1736486797179,3.0311,3252.7,3251.9,3.487042]
[1736486797780,3.0311,3252.7,3251.9,0.411922]
[1736486797987,3.0311,3252.7,3252.1,0.7831]
[1736486799462,3.0311,3252.7,3252.1,3.85803]
[1736486801493,3.0311,3252.7,3252.1,0.7831]
[1736486805061,2.29206531,3253.3,3252.3,3.07472]
[1736486805265,0.0311,3253.2,3252.4,3.07463]
[1736486806081,0.0311,3253.2,3252.5,3.10525327]
[1736486806274,0.0311,3253.2,3252.6,3.85663]
[1736486806474,0.44064505,3253.2,3252.4,3.07463]
[1736486806691,0.44064505,3253.2,3252.5,0.385683]
[1736486807078,0.44064505,3253.2,3252.5,3.460223]
[1736486807981,0.44064505,3253.2,3252.5,0.385683]
[1736486808311,0.44064505,3253.2,3252.3,0.7822]